bitfinex-derivatives/quotes_ETHF0:USTF0_20241026
["timestamp","ask_amount","ask_price","bid_price","bid_amount"]
[1729945058711,0.40438,2475.8,2475.4,0.40443]
[1729945059112,3.2078,2475.9,2475.4,0.40443]
[1729945059113,0.40439,2475.7,2475.4,0.40443]
[1729945060114,0.41,2476.4,2475.4,0.40443]
[1729945060115,1.017,2476.0,2475.5,3.2078]
[1729945060315,0.40438,2475.8,2475.5,3.2078]
[1729945061025,0.40439,2475.7,2475.4,0.40443]
[1729945061221,0.40439,2475.7,2475.5,3.2078]
[1729945061422,0.40439,2475.7,2475.4,0.40443]
[1729945061719,0.40439,2475.7,2475.5,3.2078]
[1729945063319,0.40439,2475.7,2475.5,3.61222]
[1729945063919,0.40439,2475.7,2475.5,3.2078]
[1729945064422,0.40439,2475.7,2475.5,3.61222]
[1729945064919,0.40438,2475.8,2475.5,3.61222]
[1729945065119,0.4044,2475.7,2475.5,3.61222]
[1729945066027,0.40439,2475.7,2475.5,3.61221]
[1729945067030,0.40439,2475.7,2475.5,0.40441]
[1729945067221,0.40439,2475.7,2475.5,3.61221]
[1729945067827,0.40439,2475.7,2475.5,0.40441]
[1729945068021,0.40439,2475.7,2475.5,3.61221]
[1729945068723,0.40439,2475.7,2475.3,0.4447]
[1729945068724,3.2078,2475.8,2475.3,0.4447]
[1729945068923,0.40443,2475.5,2475.3,0.84914]
[1729945069323,0.40443,2475.5,2475.4,4.04]
[1729945070021,0.40443,2475.5,2475.4,4.44443]
[1729945070223,0.40443,2475.5,2475.4,4.04]
[1729945070723,3.2078,2475.8,2475.4,4.44443]
[1729945070925,0.40443,2475.5,2475.3,0.84914]
[1729945071328,0.40443,2475.5,2475.4,4.04]
[1729945072630,0.40442,2475.5,2475.4,4.44442]
[1729945073532,3.2078,2475.8,2475.4,4.04]
[1729945073735,0.40441,2475.6,2475.3,0.4447]
[1729945074228,7.05978728,2476.1,2475.3,0.4447]
[1729945074430,0.40439,2475.7,2475.5,0.40441]
[1729945074635,0.40439,2475.7,2475.6,0.4044]
[1729945075137,0.40439,2475.7,2475.5,0.4044]
[1729945075737,0.40439,2475.7,2475.6,0.4044]
[1729945078533,0.40439,2475.7,2475.4,3.2078]
[1729945078534,4.2248,2476.0,2475.4,3.2078]
[1729945078734,4.2248,2476.0,2475.5,0.40441]
[1729945078935,0.4044,2475.7,2475.5,0.40441]
[1729945079135,0.40435,2475.9,2475.5,0.40441]
[1729945079340,0.4044,2475.7,2475.4,3.2078]
[1729945079542,0.4044,2475.7,2475.6,0.4044]
[1729945080038,0.40441,2475.6,2475.5,0.40441]
[1729945080632,0.4044,2475.7,2475.6,0.4044]
[1729945081632,0.40441,2475.6,2475.5,0.40441]
[1729945081936,0.40439,2475.7,2475.6,0.40439]
[1729945083631,4.6539,2476.0,2475.4,3.2078]
[1729945083632,3.2078,2476.0,2475.4,3.2078]
[1729945083839,0.40438,2475.8,2475.7,0.40437]
[1729945084341,0.40438,2475.8,2475.7,1.71556085]
[1729945084842,0.40438,2475.8,2475.7,0.40437]
[1729945085932,1.31119085,2475.9,2475.6,1.31119085]
[1729945086136,0.40439,2475.7,2475.6,1.71558085]
[1729945086330,0.40439,2475.7,2475.6,0.40439]
[1729945086532,0.40439,2475.7,2475.6,4.44359]
[1729945090142,0.40439,2475.7,2475.6,4.94939907]
[1729945091239,0.40439,2475.7,2475.6,4.94939818]
[1729945092546,0.40439,2475.7,2475.6,0.91019818]
[1729945092745,0.40439,2475.7,2475.6,4.94939818]
[1729945092947,0.40439,2475.7,2475.6,0.91019818]
[1729945093939,0.40441,2475.6,2475.5,0.4044]
[1729945094240,0.40441,2475.6,2475.5,0.91021641]
[1729945095050,0.40441,2475.6,2475.5,0.91021669]
[1729945096051,0.4044,2475.7,2475.6,0.40439]
[1729945096442,0.4044,2475.7,2475.4,3.9068]
[1729945096443,0.40441,2475.6,2475.5,0.40441]
[1729945096635,0.4175,2475.9,2475.4,3.9068]
[1729945096636,0.40442,2475.5,2475.4,4.31122]
[1729945096943,0.40442,2475.5,2475.4,1.60926359]
[1729945097241,0.40442,2475.5,2475.4,1.10342]
[1729945099447,0.40442,2475.5,2475.4,2.52369717]
[1729945101257,0.40442,2475.5,2475.4,2.11927717]
[1729945101545,0.40442,2475.5,2475.4,0.699]
[1729945101748,0.40442,2475.5,2475.4,1.10343]
[1729945102249,0.40442,2475.5,2475.4,0.699]
[1729945102955,0.40442,2475.5,2475.4,1.10343]
[1729945103950,0.40442,2475.5,2475.4,0.699]
[1729945104149,0.40442,2475.5,2475.4,1.10343]
[1729945108253,1.71581669,2475.5,2475.4,1.10343]
[1729945113846,0.40442,2475.5,2475.4,1.10343]
[1729945114861,1.71581669,2475.5,2475.4,1.10343]
[1729945121950,1.71581669,2475.5,2475.4,0.699]
[1729945122257,5.75581669,2475.5,2475.4,0.699]
[1729945122859,6.16941669,2475.5,2475.4,0.699]
[1729945124667,9.37721669,2475.5,2475.4,0.699]
[1729945132167,6.16941669,2475.5,2475.4,0.699]
[1729945132361,9.37721669,2475.5,2475.4,0.699]
[1729945134865,6.16941669,2475.5,2475.4,0.699]
[1729945135065,9.37721669,2475.5,2475.4,0.699]
[1729945137263,6.16941669,2475.5,2475.4,0.699]
[1729945137469,9.37721669,2475.5,2475.4,0.699]
[1729945140665,10.68861338,2475.5,2475.4,0.699]
[1729945140864,0.40452,2474.9,2474.8,0.431]
[1729945141167,1.71591669,2474.9,2474.8,0.431]
[1729945141672,1.71591669,2474.9,2474.8,0.83553]
[1729945142069,1.71591669,2474.9,2474.8,0.431]
[1729945144466,1.31139669,2474.9,2474.7,0.4385]
[1729945144663,0.945,2475.0,2474.7,0.4385]
[1729945144664,1.71592669,2474.8,2474.7,0.4385]
[1729945146272,1.71592669,2474.8,2474.7,0.84305]
[1729945147974,0.40453,2474.8,2474.7,0.84305]
[1729945148170,1.71592669,2474.8,2474.7,0.84305]
[1729945149063,1.71592669,2474.8,2474.7,0.4385]
[1729945149464,1.71592669,2474.8,2474.7,0.84305]
[1729945150072,1.71592669,2474.8,2474.7,0.4385]
[1729945164687,2.14812669,2474.8,2474.7,0.4385]
[1729945171197,0.40457,2474.6,2474.5,0.40457]
[1729945172097,0.40457,2474.6,2474.4,5.38929669]
[1729945172300,0.40458,2474.5,2474.4,4.48249]
[1729945172698,0.40458,2474.5,2474.4,8.52409]
[1729945173598,1.71597669,2474.5,2474.4,8.52409]
[1729945173795,1.71597669,2474.5,2474.4,7.6998]
[1729945173990,1.71597669,2474.5,2474.4,3.6582]
[1729945175303,1.71597669,2474.5,2474.4,3.2078]
[1729945176994,0.40461,2474.3,2474.2,3.6297]
[1729945177195,1.71600669,2474.3,2474.2,3.6297]
[1729945177604,1.71600669,2474.3,2474.2,4.03433]
[1729945177900,1.71600669,2474.3,2474.2,0.82653]
[1729945178105,1.71600669,2474.3,2474.2,4.03433]
[1729945180103,1.71600669,2474.3,2474.2,3.6297]
[1729945180402,1.71600669,2474.3,2474.2,0.82653]
[1729945180600,1.71600669,2474.3,2474.2,4.03433]
[1729945180796,1.71600669,2474.3,2474.2,3.2078]
[1729945181998,0.40466,2474.0,2473.9,1.05557435]
[1729945182202,2.20139669,2474.0,2473.8,1.47797435]
[1729945182506,1.29467,2474.0,2473.9,0.40468]
[1729945182997,2.60606669,2474.0,2473.9,0.40468]
[1729945183197,0.40465,2474.1,2473.9,4.0424]
[1729945183395,1.29565,2474.1,2474.0,0.40466]
[1729945184203,2.60704669,2474.1,2474.0,0.40466]
[1729945193104,2.20239669,2474.1,2474.0,0.40466]
[1729945193605,2.60704669,2474.1,2474.0,0.40466]
[1729945195314,1.71604669,2474.1,2474.0,0.40466]
[1729945201815,0.40466,2474.0,2473.9,0.81727]
[1729945202015,1.31139669,2474.0,2473.9,0.81727]
[1729945202214,1.71605669,2474.0,2473.9,0.81727]
[1729945203808,3.61241,2474.4,2474.3,0.40461]
[1729945204006,2.59199669,2474.4,2474.3,0.40461]
[1729945205414,1.71599669,2474.4,2474.3,0.40461]
[1729945209709,1.31139669,2474.4,2474.3,0.40461]
[1729945212019,1.31139669,2474.4,2474.3,1.71600669]
[1729945212214,4.0479,2474.7,2474.3,5.78839669]
[1729945212418,4.0479,2474.7,2474.6,0.40457]
[1729945212659,5.35929669,2474.7,2474.6,0.40457]
[1729945214023,5.76385669,2474.7,2474.6,0.40457]
[1729945214519,2.15149669,2474.7,2474.6,0.40457]
[1729945214719,2.55604669,2474.7,2474.6,0.40457]
[1729945214924,2.55604669,2474.7,2474.6,1.26887]
[1729945219027,2.15149669,2474.7,2474.6,1.26887]
[1729945219329,2.55604669,2474.7,2474.6,1.26887]
[1729945228435,2.15149669,2474.7,2474.6,1.26887]
[1729945228633,4.183,2475.7,2474.6,1.26887]
[1729945228634,0.876,2475.3,2474.6,6.62106669]
[1729945228830,0.876,2475.3,2474.8,2.32272669]
[1729945228831,1.31139669,2475.1,2474.8,2.32272669]
[1729945229032,1.31139669,2475.1,2475.0,0.4045]
[1729945229729,1.31139669,2475.1,2475.0,1.2911]
[1729945231236,1.71587669,2475.1,2475.0,1.2911]
[1729945231638,1.31139669,2475.1,2475.0,1.2911]
[1729945232334,1.74789669,2475.1,2475.0,1.2911]
[1729945232940,2.15237669,2475.1,2475.0,1.2911]
[1729945234341,1.74789669,2475.1,2475.0,1.2911]
[1729945234647,2.15237669,2475.1,2475.0,0.8866]
[1729945234845,2.15237669,2475.1,2475.0,0.4045]
[1729945235047,5.36017669,2475.1,2475.0,0.4045]
[1729945243642,4.95569669,2475.1,2475.0,0.4045]
[1729945243946,3.6443,2475.1,2475.0,0.4045]
[1729945244349,3.2078,2475.1,2475.0,0.4045]
[1729945244545,3.2078,2475.1,2475.0,1.71589669]
[1729945245944,3.2078,2475.1,2475.0,0.4045]
[1729945247646,3.2078,2475.1,2474.9,1.31139669]
[1729945247647,1.71587669,2475.2,2475.1,0.40448]
[1729945250847,1.31139669,2475.2,2474.9,1.31139669]
[1729945251046,1.31139669,2475.2,2474.8,2.20899669]
[1729945251252,1.71587669,2475.2,2475.1,0.40448]
[1729945259258,0.40449,2475.1,2475.0,0.40449]
[1729945259854,1.71587669,2475.2,2475.1,0.40448]
[1729945264671,1.31139669,2475.2,2475.1,0.40448]
[1729945264967,16.53513992,2476.8,2475.5,0.40441]
[1729945264968,4.92360669,2475.6,2475.5,0.40441]
[1729945265170,1.71580669,2475.6,2475.5,0.40441]
[1729945265563,1.71580669,2475.6,2475.5,0.83331]
[1729945265761,1.7236,2475.8,2475.5,1.74029669]
[1729945265762,0.8766,2475.8,2475.5,1.74029669]
[1729945265982,1.31139669,2475.7,2475.6,1.2616]
[1729945266763,1.71578669,2475.7,2475.6,1.2616]
[1729945267668,1.71578669,2475.7,2475.6,0.8572]
[1729945268970,1.71578669,2475.7,2475.6,1.2616]
[1729945269685,1.71578669,2475.7,2475.6,0.8572]
[1729945270167,1.71578669,2475.7,2475.6,1.2616]
[1729945270369,1.71578669,2475.7,2475.6,0.8572]
[1729945270674,1.71578669,2475.7,2475.6,0.4367]
[1729945272879,1.71578669,2475.7,2475.6,0.8411]
[1729945273174,1.71578669,2475.7,2475.6,0.4367]
[1729945292588,5.35059669,2475.7,2475.2,0.40446]
[1729945292789,0.40446,2475.3,2475.2,2.15529669]
[1729945293089,0.40446,2475.3,2475.2,2.55976669]
[1729945293290,1.29616,2475.3,2475.2,1.72429669]
[1729945294082,1.29616,2475.3,2475.2,2.12876669]
[1729945294687,2.60755669,2475.3,2475.2,1.72429669]
[1729945295285,2.60755669,2475.3,2475.2,2.12876669]
[1729945296097,2.60755669,2475.3,2475.2,2.56496669]
[1729945297389,2.60755669,2475.3,2475.2,2.12876669]
[1729945297601,2.60755669,2475.3,2475.2,0.81737]
[1729945297804,0.8917,2475.3,2475.2,2.12876669]
[1729945297992,0.8917,2475.3,2475.2,2.56496669]
[1729945299197,1.29615,2475.3,2475.2,2.56496669]
[1729945302008,0.40445,2475.3,2475.2,2.56496669]
[1729945307607,0.84565,2475.3,2475.2,2.56496669]
[1729945308404,0.84565,2475.3,2475.2,1.72429669]
[1729945309610,0.84565,2475.3,2475.2,0.81737]
[1729945309908,0.84565,2475.3,2475.2,0.4129]
[1729945310909,2.15704669,2475.3,2475.2,0.4129]
[1729945311209,2.15704669,2475.3,2475.2,0.81737]
[1729945311612,2.15704669,2475.3,2475.2,0.4129]
[1729945311807,2.15704669,2475.3,2475.2,0.81737]
[1729945312906,2.15704669,2475.3,2475.2,1.26667]
[1729945319506,2.15704669,2475.3,2475.2,0.8622]
[1729945322415,2.15704669,2475.3,2475.2,1.26667]
[1729945322603,2.15704669,2475.3,2475.2,2.17359669]
[1729945325212,2.15704669,2475.3,2475.2,0.8622]
[1729945326112,2.15704669,2475.3,2475.2,2.57806669]
[1729945326714,3.00404669,2475.3,2475.2,2.57806669]
[1729945331616,1.25145,2475.3,2475.2,2.57806669]
[1729945339621,0.847,2475.3,2475.2,2.57806669]
[1729945341421,1.25145,2475.3,2475.2,2.57806669]
[1729945363638,0.847,2475.3,2475.2,2.57806669]
[1729945363841,1.25145,2475.3,2475.2,2.57806669]
[1729945364044,0.847,2475.3,2475.2,2.57806669]
[1729945364342,1.25145,2475.3,2475.2,2.57806669]
[1729945364641,0.4455,2475.6,2475.2,6.21359669]
[1729945364838,3.61219,2475.7,2475.5,1.31139669]
[1729945365040,0.40439,2475.7,2475.6,2.98779669]
[1729945365360,0.4255,2475.8,2475.6,2.58339669]
[1729945365644,2.14127669,2475.8,2475.7,0.40439]
[1729945367837,1.73689669,2475.8,2475.6,2.58339669]
[1729945368042,1.73689669,2475.8,2475.6,2.98778669]
[1729945368043,0.40439,2475.7,2475.6,2.98778669]
[1729945368745,1.71578669,2475.7,2475.6,0.4212]
[1729945370637,2.56178669,2475.7,2475.6,0.4212]
[1729945376353,1.71578669,2475.7,2475.6,0.4212]
[1729945376551,2.56178669,2475.7,2475.6,0.4212]
[1729945376956,2.15739669,2475.7,2475.4,0.4383]
[1729945377146,1.71581669,2475.5,2475.4,0.4383]
[1729945378846,2.56181669,2475.5,2475.4,0.4383]
[1729945379051,1.25042,2475.5,2475.4,1.74969669]
[1729945379950,1.25042,2475.5,2475.4,2.15412669]
[1729945380354,1.25042,2475.5,2475.4,1.74969669]
[1729945380559,1.25042,2475.5,2475.4,2.15412669]
[1729945381154,0.40442,2475.5,2475.4,2.15412669]
[1729945383566,2.15739669,2475.6,2475.4,1.74969669]
[1729945383858,2.56180669,2475.6,2475.5,2.13911669]
[1729945386249,1.71580669,2475.6,2475.5,2.13911669]
[1729945386653,2.56180669,2475.6,2475.5,2.13911669]
[1729945391357,0.40442,2475.5,2475.4,2.15411669]
[1729945391554,0.84562,2475.5,2475.4,2.15411669]
[1729945394354,2.15701669,2475.5,2475.4,0.4383]
[1729945394559,2.57011669,2475.5,2475.4,0.4383]
[1729945395061,2.16569669,2475.5,2475.3,1.71583669]
[1729945395256,0.40443,2475.4,2475.3,1.71583669]
[1729945400258,0.40445,2475.3,2475.2,1.25737]
[1729945400467,1.71584669,2475.3,2475.2,1.25737]
[1729945400657,1.71584669,2475.3,2475.2,2.56876669]
[1729945403063,2.56184669,2475.3,2475.2,2.56876669]
[1729945406658,2.56184669,2475.3,2475.2,2.16429669]
[1729945407259,2.56184669,2475.3,2475.2,2.56876669]
[1729945409358,2.56184669,2475.3,2475.2,1.25737]
[1729945410772,6.19739669,2475.3,2474.8,3.61233]
[1729945410971,1.71591669,2474.9,2474.8,4.47713]
[1729945411372,1.71591669,2474.9,2474.8,5.78852669]
[1729945412377,0.40452,2474.9,2474.8,5.78852669]
[1729945414073,0.40452,2474.9,2474.8,5.38399669]
[1729945414271,1.71591669,2474.9,2474.8,0.4397]
[1729945414465,2.14681669,2474.9,2474.8,0.4397]
[1729945416467,5.78309669,2474.9,2474.6,0.4145]
[1729945416671,1.71594669,2474.7,2474.6,0.4145]
[1729945417067,2.14224669,2474.7,2474.6,0.4145]
[1729945417867,0.40457,2474.6,2474.5,0.4221]
[1729945418071,1.71596669,2474.6,2474.5,0.8613]
[1729945419569,2.13296669,2474.6,2474.5,0.8613]
[1729945420572,5.76919669,2474.6,2474.1,3.2078]
[1729945420782,1.31139669,2474.4,2474.2,2.13709669]
[1729945420969,1.71598669,2474.5,2474.3,1.31139669]
[1729945421169,0.846,2474.4,2474.3,0.40461]
[1729945421571,0.846,2474.4,2474.3,1.71600669]
[1729945422569,0.846,2474.4,2474.3,1.31139669]
[1729945422770,0.846,2474.4,2474.3,1.71600669]
[1729945424079,1.2506,2474.4,2474.3,1.71600669]
[1729945424484,2.56199669,2474.4,2474.3,0.40461]
[1729945425276,3.2078,2474.7,2474.3,1.31139669]
[1729945425582,3.2078,2474.7,2474.5,1.71596669]
[1729945425583,1.31139669,2474.6,2474.5,1.71596669]
[1729945425979,1.31139669,2474.6,2474.5,5.75676669]
[1729945426808,1.71596669,2474.6,2474.5,4.44537]
[1729945427582,1.71596669,2474.6,2474.5,4.87307]
[1729945427988,1.31139669,2474.6,2474.5,4.87307]
[1729945429183,1.31139669,2474.6,2474.5,0.83227]
[1729945429484,1.71596669,2474.6,2474.5,0.83227]
[1729945429684,0.40459,2474.5,2474.4,0.40459]
[1729945429875,1.71597669,2474.5,2474.4,0.40459]
[1729945432378,1.71598669,2474.5,2474.4,0.4046]
[1729945433987,0.4046,2474.4,2474.3,0.8323]
[1729945434179,1.71599669,2474.4,2474.3,0.8323]
[1729945434376,1.71599669,2474.4,2474.3,4.8739]
[1729945434585,1.31139669,2474.4,2474.3,4.8739]
[1729945435090,1.71599669,2474.4,2474.3,0.8323]
[1729945437584,1.31139669,2474.4,2474.3,0.8323]
[1729945438292,1.71599669,2474.4,2474.3,0.8323]
[1729945439282,1.31139669,2474.4,2474.3,0.8323]
[1729945439483,1.71599669,2474.4,2474.3,0.8323]
[1729945439885,1.31139669,2474.4,2474.3,0.8323]
[1729945440882,1.71599669,2474.4,2474.3,0.8323]
[1729945441304,1.31139669,2474.4,2474.3,0.8323]
[1729945441488,1.71599669,2474.4,2474.3,0.8323]
[1729945442796,1.31139669,2474.4,2474.3,0.8323]
[1729945445188,1.71599669,2474.4,2474.3,0.8323]
[1729945445588,1.31139669,2474.4,2474.3,0.8323]
[1729945446595,1.71599669,2474.4,2474.3,0.8323]
[1729945449699,1.31139669,2474.4,2474.3,0.8323]
[1729945449994,1.71599669,2474.4,2474.3,0.8323]
[1729945452492,1.31139669,2474.4,2474.3,0.8323]
[1729945452695,1.71599669,2474.4,2474.3,0.8323]
[1729945454900,1.31139669,2474.4,2474.3,0.8323]
[1729945456199,3.6142,2474.6,2474.5,0.40458]
[1729945456403,0.40451,2475.0,2474.9,0.40451]
[1729945456698,1.31139669,2474.9,2474.8,3.61233]
[1729945457795,1.31139669,2474.9,2474.8,7.65313]
[1729945458500,1.31139669,2474.9,2474.8,3.61233]
[1729945459596,1.31139669,2474.9,2474.8,4.03653]
[1729945463000,1.31139669,2474.9,2474.8,0.82873]
[1729945463196,1.31139669,2474.9,2474.8,4.03653]
[1729945463796,1.71591669,2474.9,2474.8,4.03653]
[1729945464802,1.31139669,2474.9,2474.8,4.03653]
[1729945465506,1.71591669,2474.9,2474.8,4.03653]
[1729945465707,1.31139669,2474.9,2474.8,4.03653]
[1729945466305,1.71591669,2474.9,2474.8,4.03653]
[1729945466494,1.31139669,2474.9,2474.8,0.82873]
[1729945466692,1.31139669,2474.9,2474.8,4.03653]
[1729945468190,1.71591669,2474.9,2474.8,4.03653]
[1729945470799,2.12651669,2474.9,2474.8,4.03653]
[1729945472600,1.72199669,2474.9,2474.8,4.03653]
[1729945473197,2.12651669,2474.9,2474.8,4.03653]
[1729945474114,2.12651669,2474.9,2474.8,3.61233]
[1729945474598,2.12651669,2474.9,2474.8,0.40453]
[1729945474908,1.72199669,2474.9,2474.8,3.61233]
[1729945475508,2.12651669,2474.9,2474.8,3.61233]
[1729945476011,1.72199669,2474.9,2474.8,3.61233]
[1729945476510,2.12651669,2474.9,2474.8,3.61233]
[1729945477209,1.72199669,2474.9,2474.8,3.61233]
[1729945477404,2.12651669,2474.9,2474.8,3.61233]
[1729945478006,1.72199669,2474.9,2474.8,3.61233]
[1729945478406,2.12651669,2474.9,2474.8,3.61233]
[1729945478615,2.12651669,2474.9,2474.8,0.40453]
[1729945478919,2.12651669,2474.9,2474.8,3.61233]
[1729945479607,1.72199669,2474.9,2474.8,0.40453]
[1729945479913,2.12651669,2474.9,2474.8,3.61233]
[1729945481305,2.12651669,2474.9,2474.8,3.2078]
[1729945481607,2.12651669,2474.9,2474.8,3.61233]
[1729945485620,1.71591669,2474.9,2474.8,3.61233]
[1729945489213,1.71591669,2474.9,2474.8,3.2078]
[1729945489722,1.71591669,2474.9,2474.8,3.61233]
[1729945496221,1.71591669,2474.9,2474.8,0.40453]
[1729945496421,1.71591669,2474.9,2474.8,3.61233]
[1729945496924,1.31139669,2474.9,2474.8,3.61233]
[1729945497422,1.71591669,2474.9,2474.8,3.61233]
[1729945499515,1.31139669,2474.9,2474.8,0.40453]
[1729945499714,1.31139669,2474.9,2474.8,3.61233]
[1729945500115,1.71591669,2474.9,2474.8,3.61233]
[1729945500310,1.71591669,2474.9,2474.8,0.40453]
[1729945500515,1.71591669,2474.9,2474.8,3.61233]
[1729945501221,1.71591669,2474.9,2474.8,3.2078]
[1729945501421,1.71591669,2474.9,2474.8,3.61233]
[1729945501623,1.71591669,2474.9,2474.8,3.2078]
[1729945502024,1.71591669,2474.9,2474.8,3.61233]
[1729945502219,1.31139669,2474.9,2474.8,3.61233]
[1729945502920,1.71591669,2474.9,2474.8,3.2078]
[1729945503525,1.71591669,2474.9,2474.8,3.61233]
[1729945503918,11.20948865,2474.9,2474.5,1.05672215]
[1729945504141,4.9295,2475.0,2474.5,1.05672215]
[1729945504142,0.8767,2475.0,2474.5,1.46130215]
[1729945504319,0.8767,2475.0,2474.6,0.8564]
[1729945504320,0.845,2474.9,2474.6,0.8564]
[1729945504527,0.40455,2474.7,2474.6,1.2943]
[1729945504726,0.40455,2474.7,2474.6,1.69887]
[1729945505623,0.40455,2474.7,2474.6,1.2943]
[1729945506126,0.40455,2474.7,2474.6,1.69887]
[1729945506428,1.71594669,2474.7,2474.6,1.69887]
[1729945507820,1.31139669,2474.7,2474.6,1.69887]
[1729945508623,1.71594669,2474.7,2474.6,1.69887]
[1729945510920,1.31139669,2474.7,2474.6,1.69887]
[1729945511830,1.71594669,2474.7,2474.6,1.69887]
[1729945512028,1.31139669,2474.7,2474.6,1.69887]
[1729945512222,1.71594669,2474.7,2474.6,1.69887]
[1729945514130,1.31139669,2474.7,2474.6,1.69887]
[1729945515035,3.2078,2475.0,2474.8,0.40452]
[1729945515036,0.40452,2474.9,2474.8,0.40452]
[1729945515243,0.40451,2475.0,2474.9,0.40451]
[1729945515538,1.71590669,2475.0,2474.9,0.40451]
[1729945518740,1.71590669,2475.0,2474.9,1.29011]
[1729945523238,0.845,2475.2,2475.1,0.40448]
[1729945523239,1.24948,2475.2,2475.1,0.40448]
[1729945523444,2.56087669,2475.2,2475.1,0.40448]
[1729945523945,1.71587669,2475.2,2475.1,0.40448]
[1729945524151,1.31139669,2475.2,2475.0,0.4378]
[1729945524346,1.71587669,2475.1,2475.0,0.84229]
[1729945526340,1.71587669,2475.1,2475.0,4.05009]
[1729945527644,1.71587669,2475.1,2475.0,0.84229]
[1729945527838,1.71587669,2475.1,2475.0,4.05009]
[1729945529243,1.71587669,2475.1,2475.0,0.84229]
[1729945529445,1.71587669,2475.1,2475.0,4.05009]
[1729945537671,1.71586669,2475.2,2475.1,0.40448]
[1729945542853,1.31139669,2475.2,2474.9,3.6457]
[1729945543055,0.4045,2475.0,2474.9,4.0502]
[1729945543353,1.72359669,2475.1,2474.9,3.6457]
[1729945543556,2.12809669,2475.1,2475.0,0.4045]
[1729945547546,1.72359669,2475.1,2475.0,0.4045]
[1729945547756,1.73679669,2475.2,2475.0,0.4045]
[1729945548058,0.40448,2475.1,2475.0,0.8394]
[1729945554250,0.40448,2475.1,2475.0,1.2461]
[1729945565461,1.71587669,2475.2,2475.1,0.40448]
[1729945568157,3.2078,2475.6,2475.1,1.31139669]
[1729945568462,0.40436,2475.9,2475.8,0.40436]
[1729945568668,2.15639669,2476.0,2475.9,0.40435]
[1729945568965,1.24933,2476.1,2476.0,0.40432]
[1729945569164,1.24933,2476.1,2476.0,1.26274]
[1729945569366,2.56072669,2476.1,2476.0,1.2747]
[1729945569966,1.71572669,2476.1,2476.0,1.2747]
[1729945570365,1.71572669,2476.1,2476.0,1.67904]
[1729945570765,1.71572669,2476.1,2476.0,1.2747]
[1729945571360,1.71572669,2476.1,2476.0,1.67904]
[1729945571761,1.71572669,2476.1,2476.0,1.2747]
[1729945571967,1.71572669,2476.1,2476.0,1.67904]
[1729945575563,1.71572669,2476.1,2476.0,0.40434]
[1729945578079,1.31139669,2476.1,2475.8,2.59099669]
[1729945578271,0.40434,2476.0,2475.9,0.40434]
[1729945578475,1.71572669,2476.1,2475.9,0.40434]
[1729945578779,1.71572669,2476.1,2476.0,0.40434]
[1729945582078,0.40434,2476.0,2475.9,0.40434]
[1729945583275,1.31139669,2476.1,2476.0,0.40434]
[1729945583276,1.71572669,2476.1,2476.0,0.40434]
[1729945584170,0.40433,2476.1,2476.0,0.40434]
[1729945584370,1.71572669,2476.1,2476.0,0.40434]
[1729945595481,1.31139669,2476.1,2475.8,4.4874]
[1729945595676,0.40435,2475.9,2475.8,4.89176]
[1729945596587,0.40435,2475.9,2475.8,4.44577]
[1729945596588,1.71574669,2475.9,2475.8,4.44577]
[1729945596782,1.71574669,2475.9,2475.8,4.0414]
[1729945597580,1.71574669,2475.9,2475.8,3.2078]
[1729945598180,1.71574669,2475.9,2475.8,3.61217]
[1729945598579,1.71574669,2475.9,2475.8,0.40437]
[1729945598777,1.31139669,2475.9,2475.6,4.92899669]
[1729945599278,0.40438,2475.8,2475.7,0.40437]
[1729945599988,0.40438,2475.8,2475.7,1.71576669]
[1729945606991,1.24838,2475.8,2475.7,1.71576669]
[1729945612498,1.24838,2475.8,2475.7,1.71578669]
[1729945612792,0.40439,2475.7,2475.6,4.92899669]
[1729945612995,0.40439,2475.7,2475.6,5.33338669]
[1729945616495,1.24838,2475.8,2475.7,0.40439]
[1729945616896,0.40439,2475.7,2475.6,5.33338669]
[1729945619202,1.24838,2475.8,2475.7,0.40439]
[1729945621401,0.40439,2475.7,2475.6,5.33338669]
[1729945622306,2.55977669,2475.8,2475.7,0.40439]
[1729945624608,1.24838,2475.8,2475.7,0.40439]
[1729945627606,0.40439,2475.7,2475.6,0.81419]
[1729945627804,1.24838,2475.8,2475.7,0.40439]
[1729945630011,0.844,2475.8,2475.6,0.4098]
[1729945630311,0.40439,2475.7,2475.6,0.81419]
[1729945635409,1.71578669,2475.7,2475.6,0.4098]
[1729945635815,0.40439,2475.7,2475.6,0.4098]
[1729945636004,0.40439,2475.7,2475.6,0.8142]
[1729945637304,0.40439,2475.7,2475.6,0.4098]
[1729945637502,0.4044,2475.6,2475.5,0.8711]
[1729945637702,0.40442,2475.5,2475.4,3.2078]
[1729945638623,5.35139669,2475.5,2475.3,1.31139669]
[1729945638911,0.40443,2475.4,2475.3,1.31139669]
[1729945641209,1.71582669,2475.4,2475.3,1.31139669]
[1729945641411,0.40445,2475.3,2475.2,3.00636669]
[1729945641609,1.24845,2475.3,2475.2,2.60189669]
[1729945643116,1.24845,2475.3,2475.2,3.00636669]
[1729945643508,1.24845,2475.3,2475.2,2.60189669]
[1729945644208,1.24845,2475.3,2475.2,3.00636669]
[1729945645509,1.24845,2475.3,2475.2,2.60189669]
[1729945645714,1.24845,2475.3,2475.2,3.00636669]
[1729945647319,1.24845,2475.3,2475.2,2.60189669]
[1729945647519,1.24845,2475.3,2475.2,3.00636669]
[1729945649219,1.24845,2475.3,2475.2,2.60189669]
[1729945650730,6.59984669,2475.3,2475.2,1.2905]
[1729945652235,2.55984669,2475.3,2475.2,1.2905]
[1729945652421,6.59984669,2475.3,2475.2,1.2905]
[1729945653128,0.40453,2474.8,2474.7,5.78992669]
[1729945653826,0.40453,2474.8,2474.7,2.58212669]
[1729945654827,1.24853,2474.8,2474.7,2.58212669]
[1729945655233,2.55992669,2474.8,2474.7,0.8662]
[1729945662533,2.55992669,2474.8,2474.7,2.17759669]
[1729945667428,2.55992669,2474.8,2474.7,0.8662]
[1729945679038,2.15539669,2474.8,2474.3,3.2078]
[1729945679244,1.71599669,2474.4,2474.3,3.2078]
[1729945679446,1.71599669,2474.4,2474.3,3.61241]